Cogmind - Beta 17.1 @@@ ROGUE MODE // 2026.08.30 @ 11:10:09 // Winter2019/RPGLIKE Player: Gallgagger Result: Self-destructed Performance ------------- Evolutions (0) 0 Regions Visited (3) 600 Robots Destroyed (49) 245 Value Destroyed (1683) 1683 Prototype IDs (1) 20 Alien Tech Used (0) 0 Bonus (-10) -10 TOTAL SCORE: 2538 Bonus ------- High Alert Combat Kills 149 Registered with UFD 300 Friendly Fire -459 Cogmind --------- Core Integrity 449/600 Matter 280/300 Energy 179/180 System Corruption 0% Temperature Cool (3) Movement Flying (34) Location -9/Scraptown Parts ------- > --- POWER (1) -------- Meta Core > --- PROPULSION (3+1) - Flight Unit Flight Unit Flight Unit > --- UTILITY (4+1) ---- Seismic Detector Scrap Shield > --- WEAPON (3) ------- Salvaging Laser Salvaging Laser > --- INVENTORY (1) ---- Hardened Light Armor Plating Peak State ------------ > --- POWER ------------ Meta Core > --- PROPULSION ------- Flight Unit Flight Unit Flight Unit > --- UTILITY ---------- Seismic Detector Hardened Light Armor Plating Scrap Shield > --- WEAPON ----------- Salvaging Laser Salvaging Laser > --- INVENTORY -------- (None) [Rating: 25] Favorites ----------- Power Light Nuclear Core Engine Light Ion Engine Power Core Light Nuclear Core Propulsion Flight Unit Flight Unit Flight Unit Utility Seismic Detector Device Seismic Detector Protection Scrap Shield Weapon Salvaging Laser Energy Gun Salvaging Laser Slashing Weapon Mining Claw Build | -11 -10 -10 -9 ------- Run | Yrd Mat Sub Scr Slots Evolved 7 | . 7 . . Power . | . . . . Propulsion 2 | . 2 . . Utility 3 | . 3 . . Weapon 2 | . 2 . . Parts Attached 15 | . 12 1 2 Power 3 | . 2 . 1 Engine 1 | . 1 . . Core 2 | . 1 . 1 Reactor . | . . . . Propulsion 5 | . 5 . . Treads . | . . . . Leg . | . . . . Wheel . | . . . . Hover . | . . . . Flight 5 | . 5 . . Utility 3 | . 1 1 1 Device 1 | . 1 . . Storage . | . . . . Processor . | . . . . Hackware . | . . . . Protection 2 | . . 1 1 Artifact . | . . . . Weapon 4 | . 4 . . Energy Gun 3 | . 3 . . Energy Cannon . | . . . . Ballistic Gun . | . . . . Ballistic Cannon . | . . . . Launcher . | . . . . Special Weapon . | . . . . Impact Weapon . | . . . . Slashing Weapon 1 | . 1 . . Piercing Weapon . | . . . . Special Melee Weapon . | . . . . Unidentified Prototypes 1 | . . . 1 Parts Lost . | . . . . Power . | . . . . Propulsion . | . . . . Utility . | . . . . Weapon . | . . . . Highest Loss Streak . | . . . . To Critical Strikes . | . . . . Average Backups . | . . . . Power . | . . . . Propulsion . | . . . . Utility . | . . . . Weapon . | . . . . Tool/Special . | . . . . Unused Backups . | . . . . Power . | . . . . Propulsion . | . . . . Utility . | . . . . Weapon . | . . . . Tool/Special . | . . . . Average Slot Usage (%) 68 | . 61 76 70 Core 7 | . 6 9 7 Flight 22 | . 17 27 24 Device 7 | . 5 9 7 Protection 3 | . . 4 7 Energy Gun 25 | . 28 27 20 Slashing Weapon 1 | . 2 . . Peak Build Rating 25 | . 10 15 25 Average Rating 11 | . 7 12 19 On Entrance 6 | . . 10 15 Avg Prop Armor Cover (%) . | . . . . Naked Turns 7 | . 7 . . Heaviest Build 27 | . 9 27 27 Greatest Support 27 | 3 17 27 27 Greatest Overweight (x) . | . . . . Average Overweight (x) . | . . . . Largest Inventory Capacity 1 | . 1 1 1 Average Capacity . | . . 1 1 Most Carried 1 | . 1 1 1 Average Carried . | . . . . Final Capacity 1 | . 1 1 1 Final Carried 1 | . . 1 1 Class Distribution -------------------- 72% | Scavenger-Gunner 18% | Mutant 8% | Gunner Dominant Class ---------------- Scavenger-Gunner | -10/Materials Scavenger-Gunner | -10/Subcaves Mutant | -9/Scraptown Resources | -11 -10 -10 -9 ----------- Run | Yrd Mat Sub Scr Matter Collected 340 | . 330 10 . Remotely . | . . . . Salvage Created 1782 | . 1278 504 . Parts 107 | . 78 27 2 Haulers Intercepted . | . . . . Recyclers Shooed . | . . . . Parts Field Recycled . | . . . . Retrieved Matter . | . . . . Parts Self-Destructed 6 | . . 6 . Prevented . | . . . . Parts Restored . | . . . . Kills | -11 -10 -10 -9 ------- Run | Yrd Mat Sub Scr Combat Hostiles Destroyed 46 | . 33 12 1 Melee 4 | . 4 . . Guns 42 | . 29 12 1 Classes Destroyed 6 | . 3 2 1 Turret 2 | . . 2 . Swarmer 10 | . 6 4 . Grunt 23 | . 23 . . Subdweller 8 | . . 8 . Federalist 5 | . 5 . . Explorer 1 | . . . 1 Best Kill Streak 10 | . 10 6 1 Combat Bots Only 10 | . 10 4 1 Max Kills in Single Turn 2 | . 1 2 1 Gunslinging 1 | . . 1 . Exploded . | . . . . Melee 1 | . 1 . . Uniques/NPCs Destroyed . | . . . . Combat | -11 -10 -10 -9 -------- Run | Yrd Mat Sub Scr Hostile Shots Fired 216 | . 125 81 10 Missed 81 | . 37 42 2 Hits 135 | . 88 39 8 Melee 8 | . . . 8 Projectile 127 | . 88 39 . Critical Strikes 2 | . . . 2 Damage Taken 1609 | . 913 418 278 Core 1270 | . 800 266 204 Absorbed by Shields . | . . . . Redirected to Core 697 | . 356 226 115 Regen/Repaired (Parts) 12 | . 12 . . Core Remaining (%) 100 | 100 . . . Volleys Fired 126 | . 67 46 13 Largest 3 | . 3 3 2 Hottest 90 | . 90 90 60 Shots Fired 364 | . 200 138 26 Gun 364 | . 200 138 26 Cannon . | . . . . Launcher . | . . . . Special . | . . . . Kinetic . | . . . . Thermal 364 | . 200 138 26 Explosive . | . . . . Electromagnetic . | . . . . Robot Hit Streak 75 | . 12 75 40 Robot Miss Streak 4 | . 4 2 1 Penetration Max . | . . . . Secondary Targets 4 | . 1 2 1 Max Gunslinging Chain 1 | . 1 1 1 Shots Hit Robots 294 | . 153 122 19 Core Hits 109 | . 59 35 15 Critical Kills . | . . . . Critical Parts Destroyed . | . . . . Critical Strikes . | . . . . Melee Attacks 18 | . 18 . . Impact . | . . . . Slashing 18 | . 18 . . Piercing . | . . . . Sneak Attacks 6 | . 6 . . Combat Hostiles . | . . . . Follow-up Attacks . | . . . . Damage Inflicted 3046 | . 1775 1099 172 Guns 2518 | . 1247 1099 172 Cannons . | . . . . Explosions . | . . . . Melee 528 | . 528 . . Ramming . | . . . . Kinetic . | . . . . Thermal 2518 | . 1247 1099 172 Explosive . | . . . . Electromagnetic . | . . . . Impact . | . . . . Slashing 528 | . 528 . . Piercing . | . . . . Highest Corruption . | . . . . Average Corruption . | . . . . Corruption Purged . | . . . . Corruption Blocked . | . . . . Overload Shots . | . . . . Overflow Damage 13 | . 13 . . Projectiles . | . . . . Explosions . | . . . . Melee 13 | . 13 . . Knockbacks . | . . . . Impact . | . . . . Kinetic . | . . . . Secondary . | . . . . Self-Inflicted Damage . | . . . . Shots . | . . . . Rammed . | . . . . Targets Rammed . | . . . . Kicked . | . . . . Crushed . | . . . . Highest Temperature 291 | . 291 . . Average Temperature 75 | . 75 . . Received Heat Transfer 633 | . 447 186 . Effects 2 | . 2 . . Energy Bleed 1 | . 1 . . Interference 1 | . 1 . . Siege Activations . | . . . . Martial Activations . | . . . . Shielding Activations . | . . . . Robots Disrupted . | . . . . Combat Hostiles . | . . . . Robots Corrupted . | . . . . Combat Hostiles . | . . . . Parts Fried . | . . . . Impact Corruptions . | . . . . Robots Melted 1 | . . 1 . Combat Hostiles . | . . . . Parts Melted 15 | . 5 9 1 Heat Transferred 6975 | . 3450 3050 475 Parts Sabotaged . | . . . . Parts Stolen . | . . . . Parts Stripped . | . . . . Power Chain Reactions . | . . . . Alert | -11 -10 -10 -9 ------- Run | Yrd Mat Sub Scr Maximum Alert Level 3 | . 3 . . Low Security (%) 30 | 100 29 . . Level 1 19 | . 20 . . Level 2 36 | . 36 . . Level 3 13 | . 13 . . Level 4 . | . . . . Level 5 . | . . . . High Security . | . . . . Max Security . | . . . . Peak Influence 770 | . 770 . . Initial . | . . . . Average 369 | . 374 . . Influence Increases 1226 | . 1061 165 . Destroy 0b10 Robot/C 700 | . 580 120 . Destroy Leader 160 | . 160 . . Select Force Hacks 260 | . 260 . . Destroy Structure 1 | . 1 . . Partial Spotted 15 | . 15 . . Lose Combat Pursuer 90 | . 45 45 . Influence Decreases 1226 | . 303 595 328 Entered New Map 693 | . . 365 328 Time Decay 533 | . 303 230 . Squads Dispatched 14 | . 14 . . Investigation 13 | . 13 . . Extermination . | . . . . Reinforcement 1 | . 1 . . Assault . | . . . . Garrison . | . . . . Intercept . | . . . . Searches Triggered . | . . . . Construction Impeded . | . . . . Haulers Reinforced . | . . . . Active Scanning Responses . | . . . . Cargo Convoy Interrupts . | . . . . Stealth | -11 -10 -10 -9 --------- Run | Yrd Mat Sub Scr Distress Signals 2 | . 2 . . Communications Jammed . | . . . . Distress Signals . | . . . . Times Spotted 69 | . 52 16 1 Peak Tracking Total 7 | . 7 6 5 Tactical Retreats 3 | . 2 1 . Traps | -11 -10 -10 -9 ------- Run | Yrd Mat Sub Scr Traps Triggered 4 | . 4 . . Indirectly . | . . . . Trap Hack Attempts . | . . . . Triggered . | . . . . Disarmed . | . . . . Reprogrammed . | . . . . Reused . | . . . . Traps Extracted . | . . . . Installed . | . . . . Triggered . | . . . . Machines | -11 -10 -10 -9 ---------- Run | Yrd Mat Sub Scr Machines Disabled . | . . . . Max in Single Turn . | . . . . Machines Repaired . | . . . . Machines Dismantled . | . . . . Machines Sabotaged 4 | . 4 . . Overloaded Fab Kills . | . . . . Hacking | -11 -10 -10 -9 --------- Run | Yrd Mat Sub Scr Machines Accessed 11 | . 10 . 1 Terminals 7 | . 7 . . Fabricators . | . . . . Repair Stations 1 | . 1 . . Recycling Units 2 | . 2 . . Scanalyzers . | . . . . Garrison Access . | . . . . Total Hacks 24 | . 16 . 8 Successful 19 | . 11 . 8 Failed 5 | . 5 . . Catastrophic 3 | . 3 . . Database Lockouts . | . . . . Manual 14 | . 14 . . Terminals 11 | . 11 . . Fabricators . | . . . . Repair Stations 1 | . 1 . . Recycling Units 4 | . 4 . . Scanalyzers . | . . . . Garrison Access . | . . . . Terminal Hacks 8 | . . . 8 Record 8 | . . . 8 Fabricator Hacks . | . . . . Repair Station Hacks . | . . . . Recycling Unit Hacks 1 | . 1 . . Retrieve Components 1 | . 1 . . Scanalyzer . | . . . . Garrison Access Hacks . | . . . . Unauthorized Hacks 10 | . 10 . . Terminals 7 | . 7 . . Sabotage 6 | . 6 . . Search 1 | . 1 . . Fabricators . | . . . . Repair Stations 1 | . 1 . . Patch 1 | . 1 . . Recycling Units 2 | . 2 . . Tunnel 2 | . 2 . . Scanalyzers . | . . . . Garrison Access . | . . . . Data Cores Recovered . | . . . . Used . | . . . . Hacking Detections 3 | . 3 . . Full Trace Events . | . . . . Feedback Events . | . . . . Feedback Blocked . | . . . . Robot Schematics Acquired . | . . . . Robots Built . | . . . . Authchips . | . . . . Time . | . . . . Total Robot Build Rating . | . . . . Part Schematics Acquired . | . . . . Parts Built . | . . . . Authchips . | . . . . Time . | . . . . Total Part Build Rating . | . . . . Part Studies Acquired . | . . . . Parts Repaired . | . . . . Time . | . . . . Parts Recycled . | . . . . Recycled Matter . | . . . . Retrieved Matter . | . . . . Retrieved Components 1 | . 1 . . Parts Scanalyzed . | . . . . Part Schematics Acquired . | . . . . Parts Damaged . | . . . . Bothacking | -11 -10 -10 -9 ------------ Run | Yrd Mat Sub Scr Used RIF Installer . | . . . . Robots Hacked . | . . . . Non-combat . | . . . . Combat . | . . . . Robot Hacks Applied . | . . . . Relay Couplers Released . | . . . . Fabnet Peak Effective % . | . . . . Robots Rewired . | . . . . Allies Hacked . | . . . . Hacks Repelled . | . . . . Allies | -11 -10 -10 -9 -------- Run | Yrd Mat Sub Scr Total Allies . | . . . . Largest Group . | . . . . Highest-Rated Group . | . . . . Highest-Rated Ally . | . . . . Total Orders . | . . . . Ally Attacks . | . . . . Total Damage . | . . . . Kills . | . . . . Allies Corrupted . | . . . . Allies Melted . | . . . . Intel | -11 -10 -10 -9 ------- Run | Yrd Mat Sub Scr Active Infowar (turns) 1473 | . 490 482 501 Seismic 1473 | . 490 482 501 Robot Analysis Total . | . . . . Derelict Logs Recovered 1 | . . 1 . Drone Launches . | . . . . Drone Recoveries . | . . . . Exploration | -11 -10 -10 -9 ------------- Run | Yrd Mat Sub Scr Turns Passed 1815 | 10 822 482 501 Spaces Moved 3263 | 20 1166 733 1344 Core 229 | 20 209 . . Treads . | . . . . Legs . | . . . . Wheels . | . . . . Hover . | . . . . Flight 3034 | . 957 733 1344 Fastest Speed 34 | 50 34 34 34 Average Speed 35 | 50 38 34 34 Slowest Speed 50 | 50 50 34 34 Overloaded Moves . | . . . . Propulsion Burnouts . | . . . . Robots Hopped 29 | . 28 1 . Potential Cave-ins . | . . . . Cave-ins Triggered . | . . . . Exploration Rate (%) 53 | 3 95 30 85 Regions Visited 3 Branch Regions 2 Pre-discovered Areas 3 | . 2 1 . Known Exits Taken . | . . . . Unknown Exits Taken 3 | 1 1 1 . Scrap Searched 9 | . . . 9 Spaces Dug . | . . . . Terrain Destroyed . | . . . . Melee . | . . . . Projectile . | . . . . AOE . | . . . . Terrain Rammed . | . . . . Walls Destroyed . | . . . . Machines Disabled . | . . . . Actions | -11 -10 -10 -9 --------- Run | Yrd Mat Sub Scr Total 3688 | 19 1392 906 1371 Wait 220 | . 113 107 . Move 3206 | 19 1113 730 1344 Hop 25 | . 24 1 . Pick Up 4 | . 3 1 . Fast Attach 10 | . 8 1 1 Attach 1 | . . . 1 Detach 1 | . . . 1 Swap 5 | . 5 . . Drop 9 | . 7 . 2 Fire 126 | . 67 46 13 Melee 18 | . 18 . . Ram . | . . . . Kick . | . . . . Crush . | . . . . Escape Stasis . | . . . . Rewire . | . . . . Trap . | . . . . Miscellaneous 63 | . 34 20 9 Route ------- -11/Scrapyard -10/Materials (discovered 5 exits: [*Mat x3] / [*Min] / [*Sub]) -10/Subcaves (discovered 3 exits: [*Mat] / [*Rec] / *Scr) -9/Scraptown (discovered 1 exit: [*Fac]) History --------- Turn | Location | Event 3 | -11/Scrapyard | Discovered new exit (range 15) 11 | -11/Scrapyard | Entered Materials 12 | -10/Materials | Met a group of wandering Federalists 41 | -10/Materials | Angered wandering Federalists 92 | -10/Materials | Upgraded with Propulsion slot (x1) 92 | -10/Materials | Upgraded with Utility slot (x1) 92 | -10/Materials | Upgraded with Weapon slot (x2) 159 | -10/Materials | Discovered new exit (range 8) 217 | -10/Materials | Core integrity fell below 50% 286 | -10/Materials | Reached level 2 295 | -10/Materials | Upgraded with Utility slot (x1) 307 | -10/Materials | Destroyed 10 combat bots 399 | -10/Materials | Discovered new exit (range 16) 507 | -10/Materials | Reached level 3 515 | -10/Materials | Discovered new exit (range 13) 517 | -10/Materials | Core integrity fell below 20% 534 | -10/Materials | Discovered new exit (range 8) 535 | -10/Materials | Build established: Scavenger-Gunner 552 | -10/Materials | Discovered new exit (range 4) 578 | -10/Materials | Upgraded with Propulsion slot (x1) 578 | -10/Materials | Upgraded with Utility slot (x1) 704 | -10/Materials | Reached level 4 833 | -10/Materials | Entered Subcaves 834 | -10/Subcaves | Approached by a straggling Scientist 835 | -10/Subcaves | Reached level 5 931 | -10/Subcaves | Scientist uncovered a shortcut to Scraptown 944 | -10/Subcaves | Learned location of Zion (-7) 944 | -10/Subcaves | Met a Zionite searching for "candidates" 945 | -10/Subcaves | Discovered new exit (range 8) 947 | -10/Subcaves | A Subdweller sparked back to life 947 | -10/Subcaves | A Subdweller sparked back to life 990 | -10/Subcaves | Found Prototype Power Core 1155 | -10/Subcaves | Discovered new exit (range 13) 1315 | -10/Subcaves | Entered Scraptown 1356 | -9/Scraptown | Heard Great Nut preacher, LISTEN AND RECITE! 1362 | -9/Scraptown | Visited Bundlers 1366 | -9/Scraptown | Visited Assassins FH 1431 | -9/Scraptown | Visited UFD Registry 1431 | -9/Scraptown | Registered with UFD as "Cogfunk" 1444 | -9/Scraptown | Visited Science Guys 1452 | -9/Scraptown | Visited Abandonware Association 1459 | -9/Scraptown | Visited Supply Room 1464 | -9/Scraptown | Visited A0-MCA Data Center 1467 | -9/Scraptown | Visited Analyses Database 1473 | -9/Scraptown | Visited Scrapoid Pod Storage 1479 | -9/Scraptown | Visited DA-N13 Charitable Foundation 1480 | -9/Scraptown | Found DCF Scrap (28 items) 1488 | -9/Scraptown | Visited Scrap Suit Storage 1492 | -9/Scraptown | Visited Science Testing Area 1497 | -9/Scraptown | Visited Derelict Rescue Squad 1555 | -9/Scraptown | Identified Meta Core 1556 | -9/Scraptown | Attached Meta Core, gained temporary slots: Propulsion, Utility, Weapon 1647 | -9/Scraptown | Discovered new exit (range 13) 1664 | -9/Scraptown | Visited Red Mages 1680 | -9/Scraptown | Visited Supply Room 1686 | -9/Scraptown | Visited The Evicted 1707 | -9/Scraptown | Visited Cave Peace 1749 | -9/Scraptown | Attacked by Scraptown defenders 1816 | -9/Scraptown | Self-destructed Last Messages --------------- Several Mutants have taken to collecting tolls from anyone trying to pass this area. Let's work up a convincing plan to let them open up a shop instead. Win-win. >>Record "Cave Z42" So many Samaritans keep congregating here, despite most of them being repeatedly murdered by any 0b10 patrol that happens through the area. Maybe we could remodel the surrounding caves to help direct the flow of traffic so that meetings are less frequent? >>Record "Cave J87" Whatever is hiding here is responsible for three missing CP missionaries. Avoid until we have a safe way to learn more. 01749_ ANNOUNCEMENT: Intruder alert! Defend Scraptown! 01758_ Critical hit (Impale). 01763_ Wyrm Statue destroyed. 01763_ Switching to secondary target: VS-QCF(x). 01770_ Trap Scanner melted. 01770_ VS-QCF(x) destroyed. 01773_ Used Protomatter to restore core integrity (+48, depleted) 01781_ Used Protomatter to restore core integrity (+147, depleted) 01785_ Acquired Hrd. Light Armor Plating. Map ----- +----------------------------------------------------+ | ???"" """" ###""" """####### | | ??#" """" | | ??#"" """ | | ???""" | | ???""" " ###### ########## | | ???"" " #????# #????????? | | ???""""""" #????" "?????#??? | | ????###### #??? " " ????? ? | | ?????????### #""" ""#??" "??### # | | ???????????# #""" "#? " " ?#"" " | | ???????????# #""" "#?"""" """"?#" " | | ???????????# #"" "#????# #????#" | | ???????????# #? "#????? ?????#" | | ???????????# #?"" ""?????? ?????#" "" | | ???????????# #??# ##?????? ?????#" | | ???????????# #??? ???????? ?????#"""" | | ???????????# #???#???????? ?????##### | | ??????????## ##?????????????????????? | | ??????????# ###########???######### | | ??????????# | | ??????????# | | ??????????# ###########???######### | | ??????????## ##?????????????????????? | | ???????##### ########???############# | | ?#"""?"""""" """""""#????"""""""" # | | ?#" """""" @" "#??####""" """ # | | ?#" """"" = "#??# !+ """ # | | ?#" " " ! "#??#! #"" " " # | | ??""" " ! "#??# !#" # | | ???""""" " " [] "#??# #" """ # | | ????"""""""" " [[ "#??#!!#" "" # | | ?????####### " [ ! "#??#!!#" """ # | | ?????####### " "#??####" # | | ????"""""""" """" ""#???""" " | | ??"""""""" " #### ###???"""" """"" # | | ??"" " " #### ###????"""""""""""# | | ???""" " """" ""#????############ | | ??""" " "################# | | ???"""""" " " "" "## ] #""" """ # | | ???"" " " "" "## ! !#" " "%" # | | ???"""" " " "## / =# ] = # | | ???""" " " ""##!|=]# | | ????"""" " " """""##! # # | | ???""" " """""""#### ## # | | ???"" " " """""""?#""[ # | | ???""""" " ######??#"%! # | | ???"" " #???????#"" # | | ???""""" " #???X""## ! # | | ??""" "" " #?? "##" "% " # | | ?#"" #? "##"" "" """" " # | +----------------------------------------------------+ Best States ------------- Heat Dissipation 55 Energy Generation 17 Energy Capacity 180 Matter Stores 300 Matter Capacity 300 Sight Range 16 Terrain Scan Density 10 Armor Coverage 800 Evasion (%) 63 Item Schematics ----------------- None Robot Schematics ------------------ None Fabricated ------------ Nothing Repaired ---------- Nothing Studied --------- None Alien Tech Used ----------------- None Achievements -------------- None Challenges ------------ None RPGLIKE | -11 -10 -10 -9 --------- Run | Yrd Mat Sub Scr Levels Raised 4 | . 3 1 . XP Earned 10136 | 3000 5072 1414 650 XP Spent 8400 | . 6700 1700 . Upgrades 18 | . 16 2 . Propulsion Slot 2 | . 2 . . Utility Slot 3 | . 3 . . Weapon Slot 2 | . 2 . . Heat Dissipation 5 | . 5 . . Mass Support 3 | . 1 2 . Inventory Capacity 1 | . 1 . . Ranged Accuracy 2 | . 2 . . Protomatter Created 567 | . 345 157 65 Integrity Restored 1345 | . 756 394 195 Core 1119 | . 756 168 195 Parts 226 | . . 226 . Protomatter Decayed 33 | . 12 21 . Game ------ Seed ThrowingDerelictStrikerail Manual? 0 Play Time 00:20:26 Cumulative 710.4 hours Start 2026.08.30 @ 10:53:23 End 2026.08.30 @ 11:10:09 Sessions 1 Manual Loads 0 Difficulty Rogue Special Mode Winter2019/RPGLIKE Game No. 373 Rogue 219 Adventurer 154 Explorer 0 Win Type - Total 25 Types 4/7/5/3/2/1/0/1/1/1 Lore% 95 Gallery% 89 Achievement% 69 Wizard Run 0 Options --------- Layout 0 ASCII 0 Keyboard 0 Movement Numpad Keybinds 0 Fullscreen 2 Font 18/SmallcapsGlow Map View 76x50 Zoom Use 0% Tactical HUD 1 Map Filters NONE Filters NONE Steam 1 RUN: 99016fd5-f500-423e-aefe-aefac3242ccd